bitfinex/quotes_BTCUSD_20220218
["timestamp","ask_amount","ask_price","bid_price","bid_amount"]
[1645148496768,0.00130343,40925.0,40924.0,0.782287]
[1645148496968,0.00130343,40925.0,40924.0,0.482287]
[1645148497223,0.00143216,40926.0,40924.0,0.482287]
[1645148497427,0.4574426,40949.0,40926.0,0.332287]
[1645148497428,0.00328122,40938.0,40926.0,0.332287]
[1645148497723,0.00328122,40938.0,40928.0,0.332287]
[1645148497922,0.00328122,40938.0,40928.0,0.632287]
[1645148498123,0.00328122,40938.0,40928.0,0.382287]
[1645148498325,0.00278122,40938.0,40928.0,0.382287]
[1645148498520,0.00278122,40938.0,40932.0,0.332287]
[1645148498720,0.00278122,40938.0,40936.0,0.05]
[1645148498922,0.00278122,40938.0,40937.0,0.332287]
[1645148499220,0.00278122,40938.0,40934.0,0.0099]
[1645148499423,0.10278122,40938.0,40929.0,0.332287]
[1645148499624,0.10278122,40938.0,40929.0,0.0099]
[1645148499625,0.3614,40937.0,40929.0,0.0099]
[1645148500029,0.33478889,40936.0,40917.0,0.122258]
[1645148500223,0.33478889,40936.0,40920.0,0.0093]
[1645148500224,0.45265298,40928.0,40920.0,0.0093]
[1645148500523,0.2128857,40928.0,40921.0,0.332287]
[1645148500725,0.045,40933.0,40922.0,0.05]
[1645148500965,0.24,40928.0,40921.0,0.332287]
[1645148501165,0.24,40928.0,40924.0,6e-05]
[1645148501566,0.24,40928.0,40925.0,0.332287]
[1645148501765,0.24024104,40928.0,40925.0,0.482287]
[1645148502571,0.24024104,40928.0,40925.0,0.532287]
[1645148502767,0.24,40928.0,40925.0,0.593383]
[1645148503169,0.24,40928.0,40925.0,0.71557438]
[1645148503770,0.00024104,40929.0,40928.0,0.31536592]
[1645148503968,0.0097,40936.0,40929.0,0.332287]
[1645148504169,0.25680994,40935.0,40929.0,0.332287]
[1645148504370,0.00457894,40935.0,40931.0,0.332287]
[1645148504623,0.00457894,40935.0,40934.0,0.05]
[1645148504919,0.00457894,40935.0,40929.0,0.0099]
[1645148505122,0.59157178,40937.0,40929.0,0.0099]
[1645148505321,0.36164101,40937.0,40929.0,0.0099]
[1645148505519,0.29417614,40935.0,40929.0,0.0099]
[1645148505918,0.29417614,40935.0,40930.0,0.332287]
[1645148506320,0.29417614,40935.0,40934.0,6e-05]
[1645148506521,0.00024102,40935.0,40934.0,6e-05]
[1645148506721,0.00024102,40935.0,40934.0,0.332347]
[1645148507524,0.3614,40937.0,40934.0,0.432347]
[1645148507725,0.36162596,40937.0,40934.0,0.432347]
[1645148507921,0.36162596,40937.0,40934.0,0.493432]
[1645148508122,0.36162596,40937.0,40934.0,0.432347]
[1645148508572,0.36042596,40937.0,40934.0,0.432347]
[1645148508773,0.001,40942.0,40935.0,1.22823]
[1645148508971,0.001,40942.0,40938.0,0.05]
[1645148509172,0.001,40942.0,40941.0,0.05]
[1645148509370,0.001,40942.0,40941.0,0.382287]
[1645148509770,0.001,40942.0,40941.0,0.482287]
[1645148509969,0.11321596,40944.0,40941.0,0.482287]
[1645148510171,0.11321596,40944.0,40943.0,0.332287]
[1645148510376,0.11321596,40944.0,40943.0,0.482287]
[1645148510972,0.11321596,40944.0,40943.0,0.382287]
[1645148511172,0.11321596,40944.0,40942.0,0.18319694]
[1645148511173,0.11321596,40944.0,40942.0,0.05]
[1645148511373,0.11321596,40944.0,40935.0,0.131935]
[1645148511573,0.10821596,40944.0,40935.0,0.131935]
[1645148511775,0.33788681,40937.0,40935.0,0.131935]
[1645148511972,0.09356967,40937.0,40935.0,0.131935]
[1645148512220,0.009,40943.0,40936.0,0.332287]
[1645148512520,0.35286125,40944.0,40938.0,0.061083]
[1645148512718,0.35321044,40944.0,40939.0,0.332287]
[1645148512923,0.35321044,40944.0,40940.0,0.332287]
[1645148513121,0.35321044,40944.0,40935.0,0.305418]
[1645148513122,0.3549234,40941.0,40936.0,0.332287]
[1645148513418,0.22500051,40943.0,40939.0,0.061084]
[1645148513419,0.00034919,40943.0,40939.0,0.061084]
[1645148513617,0.00034919,40943.0,40940.0,0.332287]
[1645148513819,0.00034919,40943.0,40942.0,0.05]
[1645148514022,0.34856515,40944.0,40942.0,0.332287]
[1645148514220,0.29607175,40943.0,40942.0,0.332287]
[1645148514421,0.29607175,40943.0,40942.0,0.454445]
[1645148514621,0.34856515,40944.0,40942.0,0.454445]
[1645148515023,0.34856515,40944.0,40943.0,0.061073]
[1645148515223,0.34821596,40944.0,40943.0,0.44336]
[1645148515426,0.34821596,40944.0,40943.0,0.382287]
[1645148516163,0.34321596,40944.0,40943.0,0.382287]
[1645148516363,0.34211596,40944.0,40943.0,0.499421]
[1645148516568,0.34211596,40944.0,40943.0,0.899421]
[1645148516766,0.34211596,40944.0,40943.0,0.599421]
[1645148518369,0.0002852,40949.0,40943.0,0.949421]
[1645148518569,0.0002852,40949.0,40946.0,0.393352]
[1645148518766,0.0002852,40949.0,40948.0,0.332287]
[1645148518967,0.0002852,40949.0,40946.0,0.111065]
[1645148519168,0.0002852,40949.0,40946.0,0.061065]
[1645148519371,0.0002852,40949.0,40947.0,0.393353]
[1645148520017,0.0002852,40949.0,40946.0,0.122132]
[1645148520816,1.9951852,40950.0,40946.0,0.122132]
[1645148521021,0.51201785,40948.0,40947.0,0.5]
[1645148521219,0.28589944,40948.0,40947.0,0.5]
[1645148521419,1.99600044,40950.0,40947.0,0.5]
[1645148521617,1.99600044,40950.0,40947.0,0.561132]
[1645148521818,1.99600044,40950.0,40948.0,0.332287]
[1645148521819,1.9957556,40950.0,40948.0,0.332287]
[1645148522021,1.9957556,40950.0,40949.0,0.332287]
[1645148522220,1.9907556,40950.0,40949.0,0.332287]
[1645148522418,1.9907556,40950.0,40948.0,0.23318333]
[1645148522619,2.27952401,40950.0,40948.0,0.11106433]
[1645148522820,2.51952401,40950.0,40948.0,0.06106433]
[1645148523020,2.51952401,40950.0,40947.0,0.55006]
[1645148523224,2.51952401,40950.0,40947.0,0.611133]
[1645148523467,2.51952401,40950.0,40947.0,0.67220525]
[1645148523667,2.2307556,40950.0,40948.0,0.332287]
[1645148524066,2.2307556,40950.0,40947.0,0.611073]
[1645148524268,2.2307556,40950.0,40948.0,0.12212957]
[1645148524768,2.2307556,40950.0,40948.0,0.18307]
[1645148524769,2.53677838,40950.0,40948.0,0.18307]
[1645148524969,2.53677838,40950.0,40947.0,0.672146]
[1645148526168,2.53627838,40950.0,40948.0,0.06107025]
[1645148526368,2.53627838,40950.0,40948.0,0.04657025]
[1645148526769,2.53627838,40950.0,40947.0,0.79427719]
[1645148527820,2.48627838,40950.0,40947.0,0.79427719]
[1645148528919,2.1802556,40950.0,40948.0,0.06106488]
[1645148529119,2.1802556,40950.0,40949.0,0.332287]
[1645148530618,2.1802556,40950.0,40949.0,0.454402]
[1645148531367,2.1802556,40950.0,40948.0,0.11106488]
[1645148532069,2.1802556,40950.0,40948.0,0.06106488]
[1645148533068,2.1802556,40950.0,40946.0,0.131964]
[1645148533270,2.1802556,40950.0,40935.0,0.23129258]
[1645148533271,0.3,40949.0,40935.0,0.23129258]
[1645148533469,0.3,40949.0,40939.0,0.05]
[1645148533470,0.4135,40948.0,40939.0,0.05]
[1645148533676,0.4135,40948.0,40931.0,0.24426303]
[1645148533677,0.35,40945.0,40931.0,0.061096]
[1645148533871,0.98652,40947.0,40930.0,0.05]
[1645148533872,1.68152,40944.0,40930.0,0.05]
[1645148534070,0.15,40939.0,40930.0,0.05]
[1645148534269,0.15,40937.0,40930.0,0.05]
[1645148534626,0.045,40936.0,40930.0,0.05]
[1645148534816,0.045,40935.0,40930.0,0.05]
[1645148535419,0.04508872,40935.0,40930.0,0.05]
[1645148536117,0.04508872,40935.0,40931.0,0.122178]
[1645148536118,0.23613334,40932.0,40931.0,0.122178]
[1645148536422,0.30916403,40935.0,40934.0,0.31926857]
[1645148536617,0.30916403,40935.0,40934.0,0.36926857]
[1645148536820,0.045,40935.0,40934.0,0.36926857]
[1645148537821,0.045,40935.0,40934.0,0.31926857]
[1645148538366,0.045,40935.0,40930.0,0.05]
[1645148538367,0.9,40934.0,40930.0,0.05]
[1645148538566,0.25369145,40931.0,40930.0,0.05]
[1645148539265,0.25369145,40931.0,40930.0,0.0001]
[1645148539466,0.25369145,40931.0,40928.0,0.31536592]
[1645148539666,0.30826432,40930.0,40928.0,0.31536592]
[1645148539866,0.9,40929.0,40921.0,0.061109]
[1645148540075,0.045,40928.0,40913.0,0.05]
[1645148540266,0.045,40928.0,40912.0,0.04715]
[1645148540465,0.045,40928.0,40912.0,0.02268]
[1645148540466,0.061121,40924.0,40912.0,0.02268]
[1645148540668,0.25873363,40915.0,40912.0,0.02268]
[1645148540867,0.2248415,40914.0,40912.0,0.14491]
[1645148541071,0.2248415,40914.0,40912.0,0.02268]
[1645148541668,0.2248415,40914.0,40909.0,0.009778]
[1645148541867,0.2248415,40914.0,40907.0,0.332287]
[1645148542318,0.2248415,40914.0,40910.0,0.061126]
[1645148542717,0.045,40919.0,40911.0,0.05]
[1645148543117,0.045,40919.0,40910.0,0.061126]
[1645148543318,0.24958494,40918.0,40910.0,0.061126]
[1645148543518,0.29458494,40918.0,40910.0,0.122246]
[1645148543718,0.29458494,40918.0,40911.0,0.382287]
[1645148543917,0.29458494,40918.0,40911.0,0.05]
[1645148544121,0.045,40918.0,40911.0,0.05]
[1645148544517,0.045,40918.0,40911.0,0.1]
[1645148544719,0.045,40918.0,40912.0,0.061118]
[1645148545118,0.336846,40916.0,40912.0,0.061118]
[1645148545718,0.25089612,40919.0,40912.0,0.056118]
[1645148546168,0.25089612,40919.0,40912.0,0.117235]
[1645148546366,0.0099,40922.0,40913.0,0.332287]
[1645148546367,0.24,40916.0,40913.0,0.332287]
[1645148546567,0.24,40916.0,40913.0,0.382287]
[1645148546772,0.24,40916.0,40913.0,0.554509]
[1645148547167,0.24,40916.0,40914.0,0.12221929]
[1645148547368,0.24,40916.0,40915.0,0.332287]
[1645148547568,0.24,40916.0,40915.0,0.382287]
[1645148547768,0.24,40916.0,40915.0,0.05]
[1645148547969,0.24,40916.0,40910.0,0.070722]
[1645148548171,0.24,40916.0,40911.0,0.454517]
[1645148548368,0.24,40916.0,40912.0,0.122225]
[1645148548568,0.24,40916.0,40913.0,0.332287]
[1645148548769,0.24,40916.0,40912.0,0.172225]
[1645148548770,0.24,40916.0,40915.0,0.05]
[1645148548969,0.24,40916.0,40915.0,0.382287]
[1645148549171,0.24,40916.0,40912.0,0.1722262]
[1645148549374,0.22947817,40914.0,40913.0,0.332287]
[1645148550023,0.22947817,40914.0,40909.0,0.111125]
[1645148550220,0.22947817,40914.0,40909.0,0.05]
[1645148550620,0.22947817,40914.0,40910.0,0.332287]
[1645148550920,0.22947817,40914.0,40912.0,0.332287]
[1645148551121,0.22947817,40914.0,40912.0,0.382287]
[1645148551320,0.22947817,40914.0,40912.0,0.111116]
[1645148551519,0.22947817,40914.0,40912.0,0.05]
[1645148551720,0.22947817,40914.0,40909.0,0.172238]
[1645148551926,0.22947817,40914.0,40910.0,0.332287]
[1645148552120,0.22947817,40914.0,40909.0,0.172238]
[1645148552322,0.22947817,40914.0,40909.0,0.222238]
[1645148553363,0.22954489,40914.0,40909.0,0.2833601]
[1645148553565,0.22954489,40914.0,40910.0,0.332287]
[1645148553765,6.672e-05,40914.0,40910.0,0.393404]
[1645148554166,6.672e-05,40914.0,40913.0,0.05]
[1645148554367,6.672e-05,40914.0,40913.0,0.393395]
[1645148554570,6.672e-05,40914.0,40913.0,0.493395]
[1645148554768,6.672e-05,40914.0,40913.0,0.382287]
[1645148554967,6.672e-05,40914.0,40913.0,0.432287]
[1645148555167,6.672e-05,40914.0,40913.0,0.382287]
[1645148555868,6.672e-05,40914.0,40913.0,0.432287]
[1645148556469,6.672e-05,40914.0,40913.0,0.442062]
[1645148556669,6.672e-05,40914.0,40913.0,0.392062]
[1645148557126,6.672e-05,40914.0,40913.0,0.442062]
[1645148557317,6.672e-05,40914.0,40913.0,0.432287]
[1645148558320,0.24006672,40916.0,40913.0,0.432287]
[1645148558520,0.24006672,40916.0,40914.0,0.06112]
[1645148558720,0.24006672,40916.0,40915.0,0.332287]
[1645148559120,0.24006672,40916.0,40915.0,0.382287]
[1645148559821,0.24006672,40916.0,40911.0,0.122216]
[1645148560022,0.24006672,40916.0,40911.0,0.172216]
[1645148560224,0.24006672,40916.0,40911.0,0.05]
[1645148560422,0.24006672,40916.0,40914.0,0.009776]
[1645148560622,0.43826536,40916.0,40910.0,0.061123]
[1645148560873,0.43826536,40916.0,40909.0,0.1]
[1645148561078,0.43826536,40916.0,40910.0,0.332287]
[1645148561375,0.43826536,40916.0,40910.0,0.39341]
[1645148561574,0.43826536,40916.0,40911.0,0.332287]
[1645148561575,0.33293099,40915.0,40911.0,0.332287]
[1645148561875,0.33293099,40915.0,40911.0,0.382287]
[1645148562281,0.33293099,40915.0,40911.0,0.05]
[1645148562475,0.43826536,40916.0,40912.0,0.332287]
[1645148562876,0.43826536,40916.0,40912.0,0.05]
[1645148563076,0.24006672,40916.0,40913.0,0.332287]
[1645148563678,0.24006672,40916.0,40913.0,0.45452]
[1645148563883,0.24006672,40916.0,40915.0,0.382287]
[1645148564178,0.24006672,40916.0,40915.0,0.332287]
[1645148564624,0.24006672,40916.0,40913.0,0.122233]
[1645148565121,0.24006672,40916.0,40914.0,0.332287]
[1645148565320,0.24006672,40916.0,40913.0,0.061116]
[1645148565525,0.24006672,40916.0,40914.0,0.382287]
[1645148565720,0.24006672,40916.0,40914.0,0.44339957]
[1645148565920,0.24006672,40916.0,40914.0,0.382287]
[1645148566321,0.00023194,40923.0,40919.0,0.31552225]
[1645148566522,0.2915164,40920.0,40919.0,0.31552225]
[1645148566721,0.22862936,40922.0,40919.0,0.31552225]
[1645148567624,0.0095,40924.0,40919.0,0.36552225]
[1645148567824,0.00023196,40923.0,40920.0,0.06110651]
[1645148568023,0.00023196,40923.0,40921.0,0.05]
[1645148568223,0.00023196,40923.0,40921.0,0.111104]
[1645148568469,0.00023196,40923.0,40921.0,0.061104]
[1645148568868,0.24,40923.0,40921.0,0.061104]
[1645148569070,0.24,40923.0,40922.0,0.06110329]
[1645148570168,0.24,40923.0,40921.0,0.111104]
[1645148570369,0.24,40923.0,40921.0,0.061104]
[1645148570970,0.24,40923.0,40920.0,0.061102]
[1645148571373,0.28734071,40922.0,40920.0,0.061102]
[1645148571769,0.24,40923.0,40920.0,0.061102]
[1645148572425,0.24,40923.0,40920.0,0.122214]
[1645148572821,0.5479685,40923.0,40920.0,0.18332239]
[1645148573120,0.5479685,40923.0,40920.0,0.122214]
[1645148573519,0.54803339,40923.0,40920.0,0.122214]
[1645148574122,0.24006489,40923.0,40920.0,0.122214]
[1645148574323,0.24006489,40923.0,40920.0,0.183321]
[1645148574721,0.24006489,40923.0,40920.0,0.233321]
[1645148574926,0.24006489,40923.0,40922.0,0.332287]
[1645148575121,0.24006489,40923.0,40921.0,0.332287]
[1645148575324,0.24006489,40923.0,40922.0,0.061104]
[1645148575520,0.24006489,40923.0,40920.0,0.172214]
[1645148575722,0.24006489,40923.0,40920.0,0.181987]
[1645148576167,0.24006489,40923.0,40921.0,0.332287]
[1645148577066,0.24006489,40923.0,40922.0,0.332287]
[1645148577266,0.24006489,40923.0,40920.0,0.23331888]
[1645148577470,0.24006489,40923.0,40921.0,0.061105]
[1645148578865,0.24006489,40923.0,40920.0,0.172214]
[1645148579069,0.23339143,40923.0,40920.0,0.172214]
[1645148580034,0.23339143,40923.0,40920.0,0.122214]
[1645148580434,0.23339143,40923.0,40920.0,0.172214]
[1645148580630,0.23339143,40923.0,40920.0,0.134404]
[1645148582235,0.23339143,40923.0,40920.0,0.073292]
[1645148583034,0.23339143,40923.0,40920.0,0.123292]
[1645148583235,0.23339143,40923.0,40920.0,0.073292]
[1645148583479,0.23339143,40923.0,40920.0,0.134407]
[1645148584078,0.23339143,40923.0,40920.0,0.184407]
[1645148584479,0.23339143,40923.0,40920.0,0.134407]
[1645148585079,0.23339143,40923.0,40920.0,0.073292]
[1645148585880,0.23339143,40923.0,40920.0,0.1344]
[1645148586079,0.23339143,40923.0,40920.0,0.18439906]
[1645148586280,0.23339143,40923.0,40920.0,0.23439906]
[1645148586681,0.23339143,40923.0,40920.0,0.184405]
[1645148587219,0.23339143,40923.0,40920.0,0.295512]
[1645148587621,0.23339143,40923.0,40920.0,0.35661951]
[1645148588418,0.23339143,40923.0,40920.0,0.184405]
[1645148588619,0.23339143,40923.0,40920.0,0.134405]
[1645148588819,0.23339143,40923.0,40920.0,0.19551282]
[1645148589219,0.31283038,40921.0,40920.0,0.13441082]
[1645148589620,0.31283038,40921.0,40920.0,0.13421568]
[1645148590326,0.29980921,40921.0,40920.0,0.13421568]
[1645148590520,0.23339143,40923.0,40920.0,0.073303]
[1645148590720,0.23362339,40923.0,40920.0,0.134414]
[1645148591181,0.00092771,40929.0,40922.0,0.05]
[1645148591369,0.00092771,40929.0,40921.0,0.743396]
[1645148591370,0.00092771,40929.0,40928.0,0.382287]
[1645148591573,0.00092771,40929.0,40928.0,0.432287]
[1645148591769,0.0094,40943.0,40928.0,0.432287]
[1645148591770,0.00974744,40943.0,40931.0,0.061085]
[1645148591970,0.00034744,40939.0,40932.0,0.382287]
[1645148592271,0.18877491,40942.0,40939.0,0.332287]
[1645148592469,0.18912235,40942.0,40939.0,0.396297]
[1645148592669,0.18912235,40942.0,40939.0,0.06401]
[1645148592670,0.34368547,40941.0,40939.0,0.06401]
[1645148592873,0.34403291,40941.0,40939.0,0.06401]
[1645148593669,0.34403291,40941.0,40938.0,0.122175]
[1645148594170,0.34368547,40941.0,40938.0,0.122175]
[1645148594370,0.00045082,40942.0,40938.0,0.122175]
[1645148594624,0.00045082,40942.0,40940.0,0.05]
[1645148595221,0.00045082,40942.0,40939.0,0.061086]
[1645148595425,0.00034744,40942.0,40940.0,0.05]
[1645148595622,0.00034744,40942.0,40939.0,0.061086]
[1645148595823,0.00034744,40942.0,40940.0,0.332287]
[1645148596022,0.26370941,40943.0,40939.0,0.061086]
[1645148596023,0.26405685,40943.0,40939.0,0.061086]
[1645148596222,0.00034744,40942.0,40940.0,0.061083]
[1645148596423,0.26405685,40943.0,40940.0,0.061083]
[1645148596622,0.26405685,40943.0,40939.0,0.061086]
[1645148596623,0.26381085,40943.0,40939.0,0.061086]
[1645148596823,0.26405685,40943.0,40939.0,0.061086]
[1645148597022,0.31128053,40941.0,40939.0,0.061086]
[1645148597222,0.00034744,40942.0,40939.0,0.061086]
[1645148597524,0.26405685,40943.0,40937.0,0.009769]
[1645148597724,0.00034744,40942.0,40937.0,0.009769]
[1645148597925,0.31381085,40943.0,40937.0,0.009769]
[1645148598124,0.00034744,40942.0,40937.0,0.009769]
[1645148598367,0.29153451,40938.0,40937.0,0.009769]
[1645148599173,0.47767402,40938.0,40937.0,0.009769]
[1645148599574,0.77767402,40938.0,40937.0,0.009769]
[1645148600373,0.47767402,40938.0,40937.0,0.009769]
[1645148600577,0.77767402,40938.0,40937.0,0.009769]
[1645148602221,1.01767402,40938.0,40937.0,0.009769]
[1645148603423,1.01773751,40938.0,40937.0,0.009769]
[1645148603624,0.831598,40938.0,40937.0,0.009769]
[1645148604823,1.01866888,40938.0,40937.0,0.009769]
[1645148605022,0.72713437,40938.0,40926.0,0.172196]
[1645148605224,0.77713437,40938.0,40926.0,0.172196]
[1645148605422,0.77713437,40938.0,40927.0,0.061103]
[1645148605876,0.22008302,40937.0,40927.0,0.061103]
[1645148606071,0.24957657,40931.0,40927.0,0.061103]
[1645148606271,0.22965958,40936.0,40932.0,0.3142664]
[1645148606472,0.00024603,40934.0,40932.0,0.3142664]
[1645148607574,0.00024602,40935.0,40932.0,0.3142664]
[1645148607773,0.30594202,40934.0,40932.0,0.3142664]
[1645148608173,0.00024602,40935.0,40932.0,0.3142664]
[1645148608575,0.22055958,40936.0,40932.0,0.3142664]
[1645148608776,0.2208056,40936.0,40932.0,0.3142664]
[1645148609376,0.32078089,40935.0,40932.0,0.3142664]
[1645148610621,0.3,40934.0,40932.0,0.3142664]
[1645148610821,0.38188889,40935.0,40932.0,0.3142664]
[1645148611222,0.32102691,40935.0,40932.0,0.3142664]
[1645148612223,0.32078089,40935.0,40932.0,0.3142664]
[1645148613223,0.43188889,40935.0,40932.0,0.3142664]
[1645148613494,6.324e-05,40934.0,40932.0,0.3142664]
[1645148613797,0.00024602,40936.0,40933.0,0.332287]
[1645148613994,0.00024602,40936.0,40935.0,0.382287]
[1645148614592,0.24,40938.0,40935.0,0.432287]
[1645148614791,0.24,40938.0,40936.0,0.061083]
[1645148614992,0.24,40938.0,40937.0,0.332287]
[1645148614993,0.24024601,40938.0,40937.0,0.332287]
[1645148615193,0.24024601,40938.0,40937.0,0.382287]
[1645148615794,0.24,40938.0,40937.0,0.382287]
[1645148615994,0.24,40938.0,40937.0,0.392055]
[1645148616397,0.24,40938.0,40937.0,0.382287]
[1645148618631,0.24,40938.0,40937.0,0.431187]
[1645148619036,2.30856866,40950.0,40942.0,0.06108]
[1645148619232,2.30856866,40950.0,40942.0,0.11108]
[1645148619431,2.30856866,40950.0,40946.0,0.05]
[1645148620430,2.30856866,40950.0,40946.0,0.17216]
[1645148620881,2.30866836,40950.0,40946.0,0.22216]
[1645148621484,2.30866836,40950.0,40946.0,0.28323485]
[1645148621887,2.30856866,40950.0,40946.0,0.28323485]
[1645148622085,2.30881463,40950.0,40946.0,0.28323485]
[1645148622285,2.30881463,40950.0,40946.0,0.22216]
[1645148622885,2.30881463,40950.0,40946.0,0.16108]
[1645148623085,2.30856866,40950.0,40946.0,0.16108]
[1645148623287,6.19e-05,40949.0,40946.0,0.16108]
[1645148623887,6.19e-05,40949.0,40946.0,0.170846]
[1645148624089,0.0012027,40949.0,40946.0,0.170846]
[1645148624293,0.0012027,40949.0,40948.0,0.332287]
[1645148624488,0.0012027,40949.0,40946.0,0.170846]
[1645148624726,0.0012027,40949.0,40947.0,0.332287]
[1645148624928,0.0012027,40949.0,40946.0,0.120846]
[1645148625326,0.0012027,40949.0,40948.0,0.332287]
[1645148625526,0.0012027,40949.0,40946.0,0.18191969]
[1645148625729,0.0012027,40949.0,40946.0,0.120846]
[1645148626127,0.0012027,40949.0,40947.0,0.332287]
[1645148626527,0.0012027,40949.0,40946.0,0.070844]
[1645148627126,0.0012027,40949.0,40946.0,0.009766]
[1645148627327,0.2412027,40949.0,40946.0,0.009766]
[1645148628473,0.2412027,40949.0,40947.0,0.332287]
[1645148629074,0.2412027,40949.0,40948.0,0.05]
[1645148629273,0.2412027,40949.0,40948.0,0.382287]
[1645148629674,0.58594413,40949.0,40948.0,0.382287]
[1645148630472,0.2412027,40949.0,40948.0,0.382287]
[1645148631273,1.8355225,40950.0,40948.0,0.482287]
[1645148631274,1.8322225,40950.0,40948.0,0.482287]
[1645148631474,1.8311225,40950.0,40949.0,0.56901274]
[1645148631673,1.8311225,40950.0,40949.0,0.85791274]
[1645148633129,1.8261225,40950.0,40949.0,0.85791274]
[1645148633327,1.8261225,40950.0,40949.0,0.621187]
[1645148635231,1.8261225,40950.0,40949.0,0.633377]
[1645148636273,1.27098952,40950.0,40949.0,0.633377]
[1645148636874,1.27098952,40950.0,40949.0,0.733377]
[1645148637878,1.27098952,40950.0,40949.0,0.794437]
[1645148638478,1.51098952,40950.0,40949.0,0.794437]
[1645148638878,1.51098952,40950.0,40949.0,0.554437]
[1645148639078,1.51098952,40950.0,40949.0,0.604437]
[1645148639478,0.76841942,40950.0,40949.0,0.604437]
[1645148640324,0.76841942,40950.0,40949.0,0.554437]
[1645148640722,0.76841942,40950.0,40949.0,0.604437]
[1645148641124,0.76341942,40950.0,40949.0,0.604437]
[1645148641924,0.76341942,40950.0,40949.0,0.554437]
[1645148643126,1.06341942,40950.0,40949.0,0.405537]
[1645148643380,0.76341942,40950.0,40949.0,0.344477]
[1645148643576,0.76341942,40950.0,40949.0,0.01219]
[1645148643577,0.46341942,40950.0,40949.0,0.01219]
[1645148643777,0.81278042,40950.0,40949.0,0.01219]
[1645148644582,0.81278042,40950.0,40949.0,0.344477]
[1645148644881,0.46341942,40950.0,40949.0,0.344477]
[1645148646084,0.46341942,40950.0,40949.0,0.394477]
[1645148646483,0.46341942,40950.0,40949.0,0.344477]
[1645148646684,0.46341942,40950.0,40949.0,0.394477]
[1645148647336,0.46341942,40950.0,40949.0,0.344477]
[1645148648137,0.45841942,40950.0,40949.0,0.344477]
[1645148658480,0.45841942,40950.0,40949.0,0.444477]
[1645148659282,0.39178354,40950.0,40949.0,0.444477]
[1645148660684,0.31178354,40950.0,40949.0,0.444477]
[1645148661081,0.31178354,40950.0,40949.0,0.344477]
[1645148661285,0.53012101,40950.0,40949.0,0.344477]
[1645148662136,0.31178354,40950.0,40949.0,0.344477]
[1645148662333,0.31178354,40950.0,40949.0,0.394477]
[1645148663034,0.31178354,40950.0,40949.0,0.344477]
[1645148663332,0.86445703,40950.0,40949.0,0.344477]
[1645148663636,0.31178354,40950.0,40949.0,0.394477]
[1645148663932,0.31178354,40950.0,40949.0,0.405538]
[1645148664531,0.31178354,40950.0,40949.0,0.344477]
[1645148666280,0.00389154,40951.0,40949.0,0.344477]
[1645148666476,0.00389154,40951.0,40949.0,0.405542]
[1645148668776,0.00389154,40951.0,40950.0,0.05]
[1645148668979,0.00354583,40951.0,40950.0,0.382287]
[1645148669178,0.00354583,40951.0,40950.0,0.05]
[1645148669378,0.00354583,40951.0,40949.0,0.01219]
[1645148669634,0.05279154,40951.0,40949.0,0.01219]
[1645148669829,0.10279154,40951.0,40949.0,0.01219]
[1645148670028,0.16386654,40951.0,40949.0,0.01219]
[1645148670230,0.0093,40950.0,40949.0,0.01219]
[1645148670529,0.0093,40950.0,40944.0,0.00023142]
[1645148670530,0.9,40949.0,40944.0,0.00023142]
[1645148670731,0.0989,40948.0,40944.0,0.00023142]
[1645148671128,0.0989,40948.0,40935.0,0.5]
[1645148671330,0.9,40946.0,40933.0,0.50453098]
[1645148671634,0.9,40946.0,40933.0,0.49523098]
[1645148671635,0.19009613,40934.0,40933.0,0.49523098]
[1645148672030,0.19009613,40934.0,40932.0,0.3142664]
[1645148672330,0.14862372,40934.0,40932.0,0.3142664]
[1645148672728,0.38862372,40934.0,40932.0,0.3142664]
[1645148673129,0.3,40933.0,40932.0,0.3142664]
[1645148674780,0.38862372,40934.0,40932.0,0.3142664]
[1645148674981,0.38451233,40934.0,40932.0,0.3142664]
[1645148675280,0.43451233,40934.0,40932.0,0.3142664]
[1645148675884,0.3489,40933.0,40932.0,0.3142664]
[1645148676080,0.0489,40933.0,40932.0,0.3092664]
[1645148676882,0.110007,40933.0,40932.0,0.3092664]
[1645148677326,1.668007,40933.0,40932.0,0.3092664]
[1645148677528,0.360007,40933.0,40932.0,0.3092664]
[1645148678127,0.160007,40933.0,40932.0,0.3092664]
[1645148678329,0.360007,40933.0,40932.0,0.3092664]
[1645148678526,0.11006917,40933.0,40932.0,0.3092664]
[1645148678726,0.16006917,40933.0,40932.0,0.3092664]
[1645148679727,0.11006917,40933.0,40932.0,0.3092664]
[1645148680527,0.16006917,40933.0,40932.0,0.3092664]
[1645148680980,0.16006917,40933.0,40932.0,0.03535617]
[1645148682378,0.04896217,40933.0,40932.0,0.03535617]
[1645148684488,0.24706281,40933.0,40932.0,0.03535617]
[1645148686133,0.24706281,40933.0,40932.0,0.36764317]
[1645148686134,6.217e-05,40933.0,40932.0,0.36764317]
[1645148687142,0.21612847,40933.0,40932.0,0.03535617]
[1645148687535,0.9,40932.0,40930.0,0.00023241]
[1645148687834,0.9,40932.0,40922.0,0.5]
[1645148687835,0.0489,40931.0,40922.0,0.5]
[1645148688035,0.0489,40931.0,40918.0,0.00032278]
[1645148688234,0.20453796,40930.0,40929.0,0.00014708]
[1645148688486,0.55343796,40930.0,40929.0,0.00014708]
[1645148688687,0.25343796,40930.0,40929.0,0.00014708]
[1645148689084,0.25343796,40930.0,40917.0,0.00032278]
[1645148689085,0.55343796,40930.0,40917.0,0.00032278]
[1645148689285,0.55343796,40930.0,40927.0,0.00014708]
[1645148689486,0.25343796,40930.0,40927.0,0.00014708]
[1645148689885,0.31455561,40930.0,40927.0,0.00014708]
[1645148690284,0.19319984,40919.0,40917.0,0.00032278]
[1645148690485,0.19319984,40919.0,40916.0,0.05]
[1645148690885,0.45030656,40919.0,40916.0,0.05]
[1645148691284,0.19319984,40919.0,40916.0,0.05]
[1645148691884,0.19319984,40919.0,40916.0,0.05032278]
[1645148692134,0.19319984,40919.0,40917.0,0.332287]
[1645148692332,0.52735674,40919.0,40917.0,0.00032278]
[1645148692529,0.19319984,40919.0,40918.0,0.332287]